{"text_format":"1","workbook":"xlsx","n_sheets":10,"sheets":["Einleitung","StörfallV","Gaszusammensetzung","Fermenter","Gärrestelager","Rohrleitungen","Erläuterungen","Genehmigungsbedürftigkeit","Hinweise","Einsatzstoffe"],"not_rendered":{"charts":0,"images":1,"macros":1,"external_links":0,"defined_names":1,"comments":0,"pivot_tables":0},"unopened":[],"bounds":{"document_bytes":16777216,"sheet_cells":100000,"rows_first":2000,"rows_last":500,"rows_between":2000,"halvings":0,"cell_chars":16384,"cell_head_chars":4096},"cells_cut":0,"cells_raw":0,"read":"whole","date_system":"1900"}

{"sheet":"Einleitung","index":0,"n_rows":25,"n_cols":3,"rows_kept":25,"cut":false,"hidden":false,"merged":[[0,0,0,1],[14,2,15,6],[17,2,18,6],[7,1,7,6],[8,1,8,6],[2,0,2,6],[5,0,5,6]]}
["Einleitung"]
[]
["Übersicht über die beiden Anwendungen und den Inhalt der Tabellenblätter"]
[]
[]
["Diese EXCEL-Datei bietet 2 Anwendungen:"]
[]
[null,"1.  Prüfung auf Anwendbarkeit der Störfall-Verordnung bei Biogasanlagen aufgrund des Vorhandenseins hochentzündlicher Gase (grüne Tabellenblätter)"]
[null,"2.  Prüfung auf die Genehmigungsbedürftigkeit von Biogasanlagen in Abhängigkeit von den Einsatzstoffen (gelbe Tabellenblätter).\nWenn Sie die Taste \"Einsatzmenge Inhalte löschen\" in der Arbeitsmappe \"Genehmigungsbedürftigkeit\" nutzen möchten, müssen Sie die Makros in der Anwendung aktivieren!"]
[]
[]
["Hinweise zu den einzelnen Tabellenblätter:"]
[]
["StörfallV:",null,"Eingabe der Anlagendaten & Ergebnisausgabe"]
["Gaszusammensetzung:",null,"Optionale Eingabe von Gaszusammensetzungen, die von den vorgegebenen Standardwerten abweichen "]
[]
["Fermenter:",null,"Eingabe der Geometrie der Fermenter"]
["Gärrestelager:",null,"Eingabe der Geometrie von an das Gassystem angeschlossenen Gärrestelagerbehältern"]
[]
["Rohrleitungen:",null,"Optionale Eingabe von Rohrleitungen un deren Geometrien"]
["Erläuterungen:",null,"Erläuterungen incl. zur Bemaßung von Behältern"]
[]
["Genehmigungsbedürftigkeit:",null,"Eingabe von Anlagendaten und Einsatzstoffen; Ausgabe Gasertrag"]
["Hinweise:",null,"Hinweise zur Nutzung der Tabellenblätter"]
["Einsatzstoffe: ",null,"Liste der auswählbaren Einsatzstoffe"]

{"sheet":"StörfallV","index":1,"n_rows":46,"n_cols":9,"rows_kept":46,"cut":false,"hidden":false,"merged":[[43,0,45,3],[14,8,25,14],[6,0,11,6],[14,0,15,6],[37,8,38,14],[39,8,39,14],[5,8,8,14],[10,8,11,14],[20,0,20,1],[22,0,22,1],[30,8,34,14],[20,2,20,3],[21,2,21,3],[23,2,23,3],[21,0,21,1],[23,0,23,1]]}
["Prüfung der Anwendbarkeit der StörfallV auf Biogasanlagen",null,null,null,null,null,null,null,"Hinweise:"]
[]
["Bitte die Hinweise zur Anwendung unter \"Erläuterungen\" beachten!",null,null,null,null,null,"Version 1.3",null,"Die StörfallV definiert das Vorhandensein von Stoffen wie folgt:"]
[]
["Die Prüfung der Anwendbarkeit der StörfallV muss in zwei Schritten erfolgen:",null,null,null,null,null,null,null,"Vorhandensein gefährlicher Stoffe:"]
["1. Die Volumina an Biogas werden errechnet und mit der Dichte des Biogases multipliziert.",null,null,null,null,null,null,null,"das tatsächliche oder vorgesehene Vorhandensein gefährlicher Stoffe oder ihr Vorhandensein, soweit davon auszugehen ist, dass sie bei einem außer Kontrolle geratenen industriellen chemischen Verfahren anfallen, und zwar in Mengen, die die in Anhang I genannten Mengenschwellen erreichen oder überschreiten"]
["Hierzu finden Sie Hilfen auf den nachfolgenden Blättern. Zumindest in den Blättern \"Fermenter\" und \"Gärrestlager\" müssen Anzahl und Abmessungen eingetragen werden. Das Volumen eines separaten Gaslagers ist auf diesem Blatt einzutragen. Für Rohrleitungen wird 2% des sonstigen Volumens angenommen, falls im Blatt \"Rohrleitungen\" keine Eintragung erfolgt. Sofern eine Hydrolysestufe vorhanden ist, ist das Volumen an vorhandenem Hydrolysegas auf diesem Blatt einzutragen. Das Ergebnis des Schrittes 1. wird unten angezeigt (siehe Text in den Zeilen 44 bis 46)."]
[]
[]
[null,null,null,null,null,null,null,null,"Anhang I Nr. 4 Satz 1:"]
[null,null,null,null,null,null,null,null,"Die für die Anwendung der einschlägigen Vorschriften zu berücksichtigenden Mengen sind die Höchstmengen, die zu irgendeinem Zeitpunkt vorhanden sind oder vorhanden sein können. "]
[]
[]
["2. Die Massen der sonstigen \"vorhandenen\" Stoffe müssen ggf. geprüft werden.",null,null,null,null,null,null,null,"Der Begriff Betriebsbereich wird in § 3 Abs. 5a BImSchG wie folgt definiert:"]
["Dies ist in dieser Arbeitshilfe nicht integriert und muss manuell oder mit Hilfe anderer, geeigneter Programme erfolgen.",null,null,null,null,null,null,null,"Ein Betriebsbereich ist der gesamte unter der Aufsicht eines Betreibers stehende Bereich, in dem gefährliche Stoffe im Sinne des Artikels 3 Nr. 4 der Richtlinie 96/82/EG des Rates vom 9. Dezember 1996 zur Beherrschung der Gefahren bei schweren Unfällen mit gefährlichen Stoffen (ABl. EG 1997 Nr. L 10 S. 13), geändert durch die Richtlinie 2003/105/EG des Europäischen Parlaments und des Rates vom 16. Dezember 2003 (ABl. EU Nr. L 345 S. 97), in einer oder mehreren Anlagen einschließlich gemeinsamer oder verbundener Infrastrukturen und Tätigkeiten einschließlich Lagerung im Sinne des Artikels 3 Nr. 8 der Richtlinie in den in Artikel 2 der Richtlinie bezeichneten Mengen tatsächlich vorhanden oder vorgesehen sind oder vorhanden sein werden, soweit davon auszugehen ist, dass die genannten gefährlichen Stoffe bei einem außer Kontrolle geratenen industriellen chemischen Verfahren anfallen; ausgenommen sind die in Artikel 4 der Richtlinie 96/82/EG angeführten Einrichtungen, Gefahren und Tätigkeiten."]
[]
[]
["Eine Eingabe wird von Ihnen erwartet bei den Feldern:"]
["Eine Eingabe ist möglich (mit Nachweis) bei den Feldern:"]
[]
["Anlage/ Betriebsbereich:",null,null,null,null,"NR.:"]
["Straße:"]
["PLZ:",null,null,null,null,"HW:"]
["Ort:",null,null,null,null,"RW:"]
[]
["1. Prüfung der Anwendbarkeit aufgrund des Vorhandenseins hochentzündlicher Gase"]
[null,null,null,null,"Volumen",null,"relevante Masse"]
[null,null,null,null,"m³",null,"kg",null,"Weitere Hinweise in der Vollzugshilfe des BMU zur StörfallV zu entnehmen:"]
[null,null,"Fermenter",null,{"$f":"Fermenter!C4","v":0},null,{"$f":"IF(Gaszusammensetzung!K19=0,E29*E36,E29*Gaszusammensetzung!K19)","v":0},null,"https://www.bmu.de/fileadmin/Daten_BMU/Download_PDF/Wirtschaft_und_Umwelt/vollzugshilfe_stoerfall_vo.pdf"]
[null,null,"Gasspeicher",null,0,null,{"$f":"IF(E30>0,IF(Gaszusammensetzung!L19=0,E30*E36,Gaszusammensetzung!L19*E30),0)","v":0}]
[null,null,"Gärrestelager",null,{"$f":"Gärrestelager!C4","v":0},null,{"$f":"IF(Gaszusammensetzung!M19=0,E31*E36,E31*Gaszusammensetzung!M19)","v":0},null,"Grundsätzlich kann das Volumen in Rohrleitungen mit 2 % des Volumens der anderen Anlagenteile angenommen werden. (Diese Berechnung erfolgt automatisch, falls im Blatt Rohrleitung keine Eintragung erfolgt.) In Anlagen, deren Teile nahe beeinander aufgestellt sind (keine gasführenden Rohrleitungen länger als 100 m) kann der Rohrleitungsinhalt mit 50 kg angenommen werden. (dann ist 50 (kg) manuell in G32 einzutragen!)"]
[null,null,"Rohrleitungen",null,{"$f":"IF(Rohrleitungen!D4>0,Rohrleitungen!D4,(E29+E30+E31+E33)*0.02)","v":0},null,{"$f":"IF(Gaszusammensetzung!N19=0,E32*E36,E32*Gaszusammensetzung!N19)","v":0}]
[null,null,"sonstiges",null,null,null,{"$f":"IF(E33>0,IF(Gaszusammensetzung!O19=0,E33*E36,E33*Gaszusammensetzung!O19),0)","v":0}]
[null,null,"Biogas",null,{"$f":"SUM(E29:E33)","v":0},null,{"$f":"SUM(G29:G33)","v":0}]
[]
["Maximal mögliche/zulässige Dichte Biogas",null,null,null,{"$f":"IF(Gaszusammensetzung!K19+Gaszusammensetzung!L19+Gaszusammensetzung!M19+Gaszusammensetzung!N19+Gaszusammensetzung!O19=0,IF(Gaszusammensetzung!D9=1.30665,1.3,Gaszusammensetzung!D9),\"Einzelwerte\")","v":1.3},"kg/m³"]
[null,null,null,null,"Volumen",null,"relevante Masse",null,"Hinweis des AISV:"]
[null,null,null,null,"m³",null,"kg",null,"Auf seiner 118. Sitzung hat der AISV sich dafür ausgesprochen, auf Erdgasqualität aufbereitetes Biogas störfallrechtlich der Nr. 11 des Anhangs I der Störfall-Verordnung zuzuordnen. "]
[null,null,"Hydrolyse",null,0,null,{"$f":"IF(Gaszusammensetzung!J19=0,E39*E40,E39*Gaszusammensetzung!J19)","v":0}]
["Maximal mögliche/zulässige Dichte an Hydrolysegas",null,null,null,{"$f":"IF(Gaszusammensetzung!J19=0,Gaszusammensetzung!D22,Gaszusammensetzung!J19)","v":0.95704500000000003},"kg/m³",null,null,"Dies trifft für Gase zu, die die Anforderungen für die Netzeinspeisung (DVGW 262) erfüllen."]
[]
["\"Vorhandenes\" Biogas",null,null,null,null,null,{"$f":"G34+G39","v":0},"kg"]
[]
["Anwendbarkeit der StörfallV wg. des Vorhandenseins hochentzündlicher Gase:",null,null,null,{"$f":"IF(G42<10000,\"sonstige Stoffe prüfen! \",\" \")","v":"sonstige Stoffe prüfen! "}]
[null,null,null,null,{"$f":"IF(G42>=10000,IF(G42<50000,\"Grundpflichten, sonstige Stoffe prüfen! \",\" \"),\"  \")","v":"  "}]
[null,null,null,null,{"$f":"IF(G42>=50000,\"erweiterte Pflichten\",\" \")","v":" "}]

{"sheet":"Gaszusammensetzung","index":2,"n_rows":39,"n_cols":16,"rows_kept":39,"cut":false,"hidden":false,"merged":[[23,14,25,14],[23,9,25,9],[23,10,25,10],[23,11,25,11],[23,12,25,12],[23,13,25,13],[36,0,41,6],[32,0,35,6],[22,0,23,6],[10,0,13,6],[26,0,29,6],[30,0,31,6]]}
["Optionale Eingaben der Gaszusammensetzungen:"]
[]
["1. Berechnung der Dichte von Bio- und Hydrolysegas für alle Anlagenteile:",null,null,null,null,null,null,null,"2. Berechnung der Dichte von Bio- und Hydrolyegas für einzelne Anlagenteile :"]
[null,null,null,null,null,null,null,null,"(Werte für \"Fermenter\" bis \"sonstiges\" bitte vollständig eingeben, wenn Volumen vorhanden)"]
[null,null,"vorhandenes","Dichte °C","Dichte °C",null,null,null,"Berechnung der Zündfähigkeit und Dichte von Bio- Hydrolysegas nach ISO 10156 (2010(E):"]
["Daten aus KAS - 12",null,"Biogas:",15,0,"1013 mbar",null,null,null,"Hydrolyse","Fermenter","Gasspeicher","Gärrestelager","Rohrleitungen","sonstiges"]
["CO2",0.55000000000000004,{"$f":"B7","v":0.55000000000000004},1.83,1.9766999999999999,"kg/m³",null,null,"CH4 (%)",0]
["CH4",0.45,{"$f":"B8","v":0.45},0.66700000000000004,0.71750000000000003,"kg/m³",null,null,"H2 (%)",0]
["Biogas:",null,null,{"$f":"D7*C7+D8*C8","v":1.3066500000000003},{"$f":"E7*C7+E8*C8","v":1.4100600000000001},"kg/m³",null,null,"NH3 (%)",0]
["Verhältnis zu Luft:",null,null,{"$f":"D9/1.225","v":1.06665306122449},{"$f":"E9/1.292","v":1.0913777089783283},null,null,null,"H2S (%)",0]
["Im KAS Merkblatt \"Sicherheit in Biogasanlagen\" wird als Modell für Biogas eine CO2/CH4-Mischung betrachtet und als minimale Methankonzentration 45% angegeben. Dieser Wert wird hier angesetzt und 15°C als mittlere Temperatur von Fermentern und unbeheizten, nicht isolierten Gärrestelagern (im Winter) angenommen."]
[null,null,null,null,null,null,null,null,"CO2 (%)",0]
[null,null,null,null,null,null,null,null,"H2O (%)",0]
[null,null,null,null,null,null,null,null,"N2 (%)",0,0,0,0,{"$f":"K14","v":0},0]
["http://www.kas-bmu.de/publikationen/kas/KAS_12.pdf",null,null,null,null,null,null,null,"Rest:",{"$f":"100-SUM(J7:J14)","v":100},100,100,100,100,100]
[]
["Berechnung der Dichte von Hydrolysegas",null,null,null,null,null,null,null,"Summe (%) ",{"$f":"IF(SUM(J7:J10)+SUM(J12:J14)=100,100,\"Werte prüfen!\")","v":"Werte prüfen!"},"Werte prüfen!","Werte prüfen!","Werte prüfen!","Werte prüfen!","Werte prüfen!"]
[null,null,"vorhandenes","Dichte °C","Dichte °C"]
[null,null,"Hydrolysegas",15,0,"1013 mbar",null,null,"Dichte 15°C",{"$f":"(J7*$L28+J8*$L29+J9*$L30+J10*$L31+J12*$L33+J13*$L34+J14*$L35)/100","v":0},0,0,0,0,0,"kg/m³"]
["CO2",0.5,{"$f":"B20","v":0.5},1.83,1.9766999999999999,"kg/m³"]
["H2",0.5,{"$f":"B21","v":0.5},8.4089999999999998E-2,8.9899999999999994E-2,"kg/m³",null,null,"Ein Gas ist nach ISO 10156 hochentzündlich, wenn ΣAi(100/Tci-1)>ΣBk*Kk ist."]
["Hydrolysegas:",null,null,{"$f":"D20*C20+D21*C21","v":0.95704500000000003},{"$f":"E20*C20+E21*C21","v":1.0332999999999999},"kg/m³",null,null,"=ΣAi(100/Tci-1)",{"$f":"J7*(100/$J28-1)+J8*(100/$J29-1)+J9*(100/$J30-1)+J10*(100/$J31-1)","v":0},0,0,0,0,0]
["Nach: Daniel Preißer: Bietet eine separate Hydrolyse zusätzliches Potential in NaWaRo-Biogasanlagen, Universität Hohenheim 5.6.2008",null,null,null,null,null,null,null,"=ΣBk*Kk",{"$f":"J12*$J33+J13*$J34+J14*$J35","v":0},0,0,0,0,0]
[null,null,null,null,null,null,null,null,null,{"$f":"IF(J19=0,\" \",IF(J22>J23,\"hochentzündlich\",\"Nach ISO nicht hoch- entzündlich\"))","v":" "}," "," "," "," "," "]
[]
["Hinweis:"]
["Optional können die vorgegebenen Werte für die Gaszusammensetzungen ersetzt werden. Dies kann 1.) entweder für die Zusammensetzung von Biogas in allen Anlagenteilen und/oder die Hydrolysestufe erfolgen (linke Seite) oder 2.) für jede Gruppe von Anlagenteilen unter Berücksichtigung unterschiedlicher Zusammensetzungen in jeder Gruppe (rechte Seite).",null,null,null,null,null,null,null,null,"Tci in %","Li in %","Dichte 15 °C","Dichte 0 °C"]
[null,null,null,null,null,null,null,null,"CH4 (%)",8.6999999999999993,4.4000000000000004,0.66700000000000004,0.71750000000000003]
[null,null,null,null,null,null,null,null,"H2 (%)",5.5,4,8.4000000000000005E-2,8.9899999999999994E-2]
[null,null,null,null,null,null,null,null,"NH3 (%)",40.1,15.4,0.7198,0.77139999999999997]
["Bei 1.) sind die Werte für \"vorhandenes Biogas\" (C7:C8) und/oder \"vorhandenes Hydrolysegas\" (C20:C21) zu überschreiben. ",null,null,null,null,null,null,null,"H2S (%)",8.9,3.9,1.4350000000000001,1.5359]
[null,null,null,null,null,null,null,null,null,"Kk in %"]
["Bei 2.) sind die Werte für die Zusammensetzung des Gases in vol% für Gruppen von Anlagenteilen einzugeben, wobei dies für jede Gruppe erfolgen muss, für die ein Volumen eingetragen wurde. Die Summe muss 100% ergeben. Das Programm prüft dann, ob das entsprechende Gas gemäß der ISO 10156 hochentzündlich ist. ",null,null,null,null,null,null,null,"CO2 (%)",1.5,null,1.83,1.9766999999999999]
[null,null,null,null,null,null,null,null,"H2O (%)",1.5,null,1.2999999999999999E-2]
[null,null,null,null,null,null,null,null,"N2 (%)",1,null,1.1694,1.25]
[]
["Ist dies nicht der Fall, können Volumina entsprechender Anlagenteile bei der Eingabe auf den nachfolgenden Blättern entfallen, wenn ein Nachweis von einer Messstelle nach § 26 BImSchG oder einer ZÜS für den Bereich Ex-Schutz, dass verfahrens- oder anlagenbedingt kein hochentzündliches Gasgemisch gemäß ISO 10156 und StörfallV \"vorhanden\" sein kann, vorliegt. Soweit ein derartiger Nachweis nicht vorliegt, sind auch die entsprechende Volumina zu berücksichtigen.",null,null,null,null,null,null,null,"Tci in %","Maximalgehalt des Gases, das mit N2 gemischt, nicht entflammbar in Luft ist."]
[null,null,null,null,null,null,null,null,"Li in %","Untere Zündgrenze in Luft"]
[null,null,null,null,null,null,null,null,"Kk","Äquivalenzkoeffizient eines Inertgases bezogen auf N2"]

{"sheet":"Fermenter","index":3,"n_rows":32,"n_cols":43,"rows_kept":32,"cut":false,"hidden":false,"merged":[[9,34,9,41],[9,0,9,4],[9,6,9,10],[9,12,9,16],[9,18,9,26],[9,28,9,32]]}
["Berechnung des technisch maximal möglichen oder zulässigen Volumens von Biogas im Fermenter/in den Fermentern",null,null,null,null,null,null,null,null,null,null,null,"(Die Grafiken lassen sich durch anklicken und ziehen am Rahmen vergrößern. Die einzutragenen Maße werden dann sichtbar)."]
["(Behältern, die unter möglichem Vorhandensein von hochentzündlichem Biogas mit konstanten Füllständen betrieben werden.)"]
[]
["Gesamtvolumen:",null,{"$f":"E8+K8+Q8+AA8+AG8+AP8","v":0},"m³"]
[]
[]
["Bitte alle Maße in Meter eingeben."]
["Einzelvolumina",null,null,null,{"$f":"SUM(E12:E32)","v":0},"m³",null,null,null,null,{"$f":"SUM(K12:K32)","v":0},"m³",null,null,null,null,{"$f":"SUM(Q12:Q32)","v":0},"m³",null,null,null,null,null,null,null,null,{"$f":"SUM(AA12:AA32)","v":0},"m³",null,null,null,null,{"$f":"SUM(AG12:AG32)","v":0},"m³",null,null,null,null,null,null,null,{"$f":"SUM(AP12:AP32)","v":0},"m³"]
[]
["Zylindrische Fermenter mit aufgesetztem Kegel (z.B. mit Innen- und Außenfolie)",null,null,null,null,null,"Zylindrische Fermenter mit aufgesetztem Kugelsegment (z.B. Behälter mit einer Folie unter Innendruck)",null,null,null,null,null,"Propfenstromfermenter (liegender Zylinder)",null,null,null,null,null,"Quader mit aufgesetztem zylindrischem Gasspeicher + Halbkugelenden",null,null,null,null,null,null,null,null,null,"Quader (Boxen)",null,null,null,null,null,"Pfefferkornfermenter"]
["Anzahl","r Zylinder-radius","h'' Freibord","h' Kegelhöhe","Volumen",null,"Anzahl","r Zylinder-radius","h'' Freibord","h' Höhe Kugel-segment","Volumen",null,"Anzahl","r Zylinder-radius","l Zylinder-länge","h' Freibord","Volumen",null,"Anzahl","r Zylinder-radius","l' Zylinder-länge","l'' Bodenlänge","h' Freibord1","L Länge","B Breite","h'' Freibord2","Volumen",null,"Anzahl","L Länge","B Breite","h' Freibord","Volumen",null,"Anzahl"," r Radius 1","r' radius 2","h' Höhe 1","h'' Höhe 2","h''' Höhe 3","h'''' Höhe 4"]
[null,null,null,null,{"$f":"A12*((PI()*B12^2*C12)+(PI()*1/3*B12^2*D12))","v":0},null,null,null,null,null,{"$f":"G12*((PI()*H12^2*I12)+(PI()*J12*1/6*(3*H12^2+J12^2)))","v":0},null,0,1,null,null,{"$f":"M12*(N12^2*O12*(ACOS((N12-P12)/N12)-(N12-P12)*(2*N12*P12-P12^2)^0.5/N12^2)+(PI() *P12^2*1/3*(3*N12-P12)))","v":0},null,0,1,null,null,null,null,null,null,{"$f":"S12*((T12^2*U12*(ACOS((T12-W12)/T12)-(T12-W12)*(2*T12*W12-W12^2)^0.5/T12^2)+(PI()*V12*1/6*(3*W12^2+V12^2)))+X12*Y12*Z12)","v":0},null,null,null,null,null,{"$f":"AC12*AD12*AE12*AF12","v":0},null,null,null,null,null,null,null,null,{"$f":"AI12*PI()*(AJ12^2*(AO12+1/3*AN12)+1/3*AJ12*AK12*AN12+AK12^2*(1/3*AN12+AM12+1/3*AL12))","v":0}]
[null,null,null,null,0,null,null,null,null,null,0,null,0,1,null,null,0,null,0,1,null,null,null,null,null,null,{"$f":"S13*((T13^2*U13*(ACOS((T13-W13)/T13)-(T13-W13)*(2*T13*W13-W13^2)^0.5/T13^2)+(PI() *W13^2*1/3*(3*T13-W13)))+X13*Y13*Z13)","v":0},null,null,null,null,null,0,null,null,null,null,null,null,null,null,0]
[null,null,null,null,0,null,null,null,null,null,0,null,0,1,null,null,0,null,0,1,null,null,null,null,null,null,0,null,null,null,null,null,0,null,null,null,null,null,null,null,null,0]
[null,null,null,null,0,null,null,null,null,null,0,null,0,1,null,null,0,null,0,1,null,null,null,null,null,null,0,null,null,null,null,null,0,null,null,null,null,null,null,null,null,0]
[null,null,null,null,0,null,null,null,null,null,0,null,0,1,null,null,0,null,0,1,null,null,null,null,null,null,0,null,null,null,null,null,0,null,null,null,null,null,null,null,null,0]
[null,null,null,null,0,null,null,null,null,null,0,null,0,1,null,null,0,null,0,1,null,null,null,null,null,null,0,null,null,null,null,null,0,null,null,null,null,null,null,null,null,0]
[null,null,null,null,0,null,null,null,null,null,0,null,0,1,null,null,0,null,0,1,null,null,null,null,null,null,0,null,null,null,null,null,0,null,null,null,null,null,null,null,null,0]
[null,null,null,null,0,null,null,null,null,null,0,null,0,1,null,null,0,null,0,1,null,null,null,null,null,null,0,null,null,null,null,null,0,null,null,null,null,null,null,null,null,0]
[null,null,null,null,0,null,null,null,null,null,0,null,0,1,null,null,0,null,0,1,null,null,null,null,null,null,0,null,null,null,null,null,0,null,null,null,null,null,null,null,null,0]
[null,null,null,null,0,null,null,null,null,null,0,null,0,1,null,null,0,null,0,1,null,null,null,null,null,null,0,null,null,null,null,null,0,null,null,null,null,null,null,null,null,0]
[null,null,null,null,0,null,null,null,null,null,0,null,0,1,null,null,0,null,0,1,null,null,null,null,null,null,0,null,null,null,null,null,0,null,null,null,null,null,null,null,null,0]
[null,null,null,null,0,null,null,null,null,null,0,null,0,1,null,null,0,null,0,1,null,null,null,null,null,null,0,null,null,null,null,null,0,null,null,null,null,null,null,null,null,0]
[null,null,null,null,0,null,null,null,null,null,0,null,0,1,null,null,0,null,0,1,null,null,null,null,null,null,0,null,null,null,null,null,0,null,null,null,null,null,null,null,null,0]
[null,null,null,null,0,null,null,null,null,null,0,null,0,1,null,null,0,null,0,1,null,null,null,null,null,null,0,null,null,null,null,null,0,null,null,null,null,null,null,null,null,0]
[null,null,null,null,0,null,null,null,null,null,0,null,0,1,null,null,0,null,0,1,null,null,null,null,null,null,0,null,null,null,null,null,0,null,null,null,null,null,null,null,null,0]
[null,null,null,null,0,null,null,null,null,null,0,null,0,1,null,null,0,null,0,1,null,null,null,null,null,null,0,null,null,null,null,null,0,null,null,null,null,null,null,null,null,0]
[null,null,null,null,0,null,null,null,null,null,0,null,0,1,null,null,0,null,0,1,null,null,null,null,null,null,0,null,null,null,null,null,0,null,null,null,null,null,null,null,null,0]
[null,null,null,null,0,null,null,null,null,null,0,null,0,1,null,null,0,null,0,1,null,null,null,null,null,null,0,null,null,null,null,null,0,null,null,null,null,null,null,null,null,0]
[null,null,null,null,0,null,null,null,null,null,0,null,0,1,null,null,0,null,0,1,null,null,null,null,null,null,0,null,null,null,null,null,0,null,null,null,null,null,null,null,null,0]
[null,null,null,null,0,null,null,null,null,null,0,null,0,1,null,null,0,null,0,1,null,null,null,null,null,null,0,null,null,null,null,null,0,null,null,null,null,null,null,null,null,0]
[null,null,null,null,0,null,null,null,null,null,0,null,0,1,null,null,0,null,0,1,null,null,null,null,null,null,0,null,null,null,null,null,0,null,null,null,null,null,null,null,null,0]

{"sheet":"Gärrestelager","index":4,"n_rows":32,"n_cols":37,"rows_kept":32,"cut":false,"hidden":false,"merged":[[11,36,28,39],[9,0,9,5],[9,7,9,12],[9,14,9,18],[9,20,9,25],[9,27,9,34]]}
["Berechnung des technisch maximal möglichen oder zulässigen Volumens von Biogas im abgedeckten Gärrestelager/in den abgedeckten Gärrestelagern",null,null,null,null,null,null,null,null,null,null,null,null,null,"(Die Grafiken lassen sich durch anklicken und ziehen am Rahmen vergrößern. Die einzutragenen Maße werden dann sichtbar)."]
["(Behältern, die unter möglichem Vorhandensein von hochentzündlichem Biogas mit wechselnden Füllständen (z.B. Vorlagen, Gärrestelager) betrieben werden.)"]
[]
["Gesamtvolumen:",null,{"$f":"F8+M8+S8+Z8+AI8","v":0},"m³"]
[]
[]
["Bitte alle Maße in Meter eingeben."]
["Einzelvolumina",null,null,null,null,{"$f":"SUM(F12:F32)","v":0},"m³",null,null,null,null,null,{"$f":"SUM(M12:M32)","v":0},"m³",null,null,null,null,{"$f":"SUM(S12:S32)","v":0},"m³",null,null,null,null,null,{"$f":"SUM(Z12:Z32)","v":0},"m³",null,null,null,null,null,null,null,{"$f":"SUM(AI12:AI32)","v":0},"m³"]
[]
["Zylinder mit aufgesetztem Kegel (z.B. mit Innen- und Außenfolie)",null,null,null,null,null,null,"Zylinder mit aufgesetztem Kugelsegment (z.B. Behälter mit einer Folie unter Innendruck)",null,null,null,null,null,null,"Zylinder mit Flachdach",null,null,null,null,null,"Quader (Boxen)",null,null,null,null,null,null,"abgedecktes Erdbecken"]
["Anzahl","r Zylinder- radius","h Höhe","h''' Stand nach Entleerung","h' Kegelhöhe","Volumen",null,"Anzahl","r Zylinder-radius","h Höhe","h''' Stand nach Entleerung","h' Höhe Kugel-segment","Volumen",null,"Anzahl","r Zylinder-radius","H Höhe","h''' Stand nach Entleerung","Volumen",null,"Anzahl","L Länge","B Breite","H Höhe","h''' Stand nach Entleerung","Volumen",null,"Anzahl","H Höhe","h''' Höhe 1","B Breite","b' Breite 1","L Länge","l ´ Länge","Volumen"]
[null,null,null,null,null,{"$f":"A12*((PI()*B12^2*(C12-D12))+(PI()*1/3*B12^2*E12))","v":0},null,null,null,null,null,null,{"$f":"H12*((PI()*I12^2*(J12-K12))+(PI()*L12*1/6*(3*I12^2+L12^2)))","v":0},null,null,null,null,null,{"$f":"O12*(PI()*P12^2*(Q12-R12))","v":0},null,null,null,null,null,null,{"$f":"U12*V12*W12*(X12-Y12)","v":0},null,null,1,null,null,null,null,null,{"$f":"AB12*1/3*(AC12-AD12)*((AF12+(AE12-AF12)*AD12/AC12)*(AH12+(AG12-AH12)*AD12/AC12)+((AF12+(AE12-AF12)*AD12/AC12)*(AH12+(AG12-AH12)*AD12/AC12)*AE12*AG12)^0.5+AE12*AG12)","v":0},null,"Die Volumina sonstiger Behälter oder abgedeckter Endlager für vollständig vergorenes Substrat (i.d.R. vierte Stufe), die nicht beheizt werden und nicht mit dem Biogassystem verbunden sind, werden berücksichtigt, es sei denn, durch ein Messprogramm (insbesondere hinsichtlich CH4, H2, H2S, NH3) einer Messstelle nach § 26 BImSchG oder einer ZÜS für den Bereich Ex-Schutz wird der Nachweis erbracht, dass die untere Explosionsgrenze verfahrens- oder anlagenbedingt nicht überschritten werden kann, d.h. kein hochentzündliches Gasgemisch gemäß StörfallV „vorhanden“ sein kann. Geruchsmindernd abgedeckte Vorlagebehälter oder geruchsmindernd abgedeckte, hinter einem Separator angeordnete Endlager ohne relevanten Feststoffanteil, die nicht beheizt werden und nicht mit dem Biogassystem verbunden sind, können unberücksichtigt bleiben."]
[null,null,null,null,null,0,null,null,null,null,null,null,0,null,null,null,null,null,0,null,null,null,null,null,null,0,null,null,1,null,null,null,null,null,0]
[null,null,null,null,null,0,null,null,null,null,null,null,0,null,null,null,null,null,0,null,null,null,null,null,null,0,null,null,1,null,null,null,null,null,0]
[null,null,null,null,null,0,null,null,null,null,null,null,0,null,null,null,null,null,0,null,null,null,null,null,null,0,null,null,1,null,null,null,null,null,0]
[null,null,null,null,null,0,null,null,null,null,null,null,0,null,null,null,null,null,0,null,null,null,null,null,null,0,null,null,1,null,null,null,null,null,0]
[null,null,null,null,null,0,null,null,null,null,null,null,0,null,null,null,null,null,0,null,null,null,null,null,null,0,null,null,1,null,null,null,null,null,0]
[null,null,null,null,null,0,null,null,null,null,null,null,0,null,null,null,null,null,0,null,null,null,null,null,null,0,null,null,1,null,null,null,null,null,0]
[null,null,null,null,null,0,null,null,null,null,null,null,0,null,null,null,null,null,0,null,null,null,null,null,null,0,null,null,1,null,null,null,null,null,0]
[null,null,null,null,null,0,null,null,null,null,null,null,0,null,null,null,null,null,0,null,null,null,null,null,null,0,null,null,1,null,null,null,null,null,0]
[null,null,null,null,null,0,null,null,null,null,null,null,0,null,null,null,null,null,0,null,null,null,null,null,null,0,null,null,1,null,null,null,null,null,0]
[null,null,null,null,null,0,null,null,null,null,null,null,0,null,null,null,null,null,0,null,null,null,null,null,null,0,null,null,1,null,null,null,null,null,0]
[null,null,null,null,null,0,null,null,null,null,null,null,0,null,null,null,null,null,0,null,null,null,null,null,null,0,null,null,1,null,null,null,null,null,0]
[null,null,null,null,null,0,null,null,null,null,null,null,0,null,null,null,null,null,0,null,null,null,null,null,null,0,null,null,1,null,null,null,null,null,0]
[null,null,null,null,null,0,null,null,null,null,null,null,0,null,null,null,null,null,0,null,null,null,null,null,null,0,null,null,1,null,null,null,null,null,0]
[null,null,null,null,null,0,null,null,null,null,null,null,0,null,null,null,null,null,0,null,null,null,null,null,null,0,null,null,1,null,null,null,null,null,0]
[null,null,null,null,null,0,null,null,null,null,null,null,0,null,null,null,null,null,0,null,null,null,null,null,null,0,null,null,1,null,null,null,null,null,0]
[null,null,null,null,null,0,null,null,null,null,null,null,0,null,null,null,null,null,0,null,null,null,null,null,null,0,null,null,1,null,null,null,null,null,0]
[null,null,null,null,null,0,null,null,null,null,null,null,0,null,null,null,null,null,0,null,null,null,null,null,null,0,null,null,1,null,null,null,null,null,0]
[null,null,null,null,null,0,null,null,null,null,null,null,0,null,null,null,null,null,0,null,null,null,null,null,null,0,null,null,1,null,null,null,null,null,0]
[null,null,null,null,null,0,null,null,null,null,null,null,0,null,null,null,null,null,0,null,null,null,null,null,null,0,null,null,1,null,null,null,null,null,0]
[null,null,null,null,null,0,null,null,null,null,null,null,0,null,null,null,null,null,0,null,null,null,null,null,null,0,null,null,1,null,null,null,null,null,0]

{"sheet":"Rohrleitungen","index":5,"n_rows":30,"n_cols":6,"rows_kept":30,"cut":false,"hidden":false,"merged":[[7,1,7,3]]}
["Berechnung des technisch maximal möglichen oder zulässigen Volumens von Biogas in den Rohrleitungen"]
["(Rohrleitungen, die unter Vorhandensein von hochentzündlichem Biogas betrieben werden und zum Betriebsbereich gehören.)"]
[]
["Gesamtvolumen:",null,null,{"$f":"SUM(F10:F30)","v":0},"m³"]
[]
["Bitte lfm in Meter eingeben"]
[]
[null,"D Durchmesser",null,null,"L (m)"]
["Anzahl","DN (mm)","oder"," Zoll (\")","lfm","Volumen"]
[null,null,null,null,null,{"$f":"A10*PI()*(B10/2000)^2*E10+A10*PI()*(D10*2.54/200)^2*E10","v":0}]
[null,null,null,null,null,0]
[null,null,null,null,null,0]
[null,null,null,null,null,0]
[null,null,null,null,null,0]
[null,null,null,null,null,0]
[null,null,null,null,null,0]
[null,null,null,null,null,0]
[null,null,null,null,null,0]
[null,null,null,null,null,0]
[null,null,null,null,null,0]
[null,null,null,null,null,0]
[null,null,null,null,null,0]
[null,null,null,null,null,0]
[null,null,null,null,null,0]
[null,null,null,null,null,0]
[null,null,null,null,null,0]
[null,null,null,null,null,0]
[null,null,null,null,null,0]
[null,null,null,null,null,0]
[null,null,null,null,null,0]

{"sheet":"Erläuterungen","index":6,"n_rows":1,"n_cols":1,"rows_kept":1,"cut":false,"hidden":false,"merged":[]}
["Erläuterungen (für weitere Seiten bitte öffnen - Doppelklick!)"]

{"sheet":"Genehmigungsbedürftigkeit","index":7,"n_rows":20,"n_cols":6,"rows_kept":20,"cut":false,"hidden":false,"merged":[]}
[]
[null,null,"Berechnung des Gasertrages"]
[null,null,"Anlage/Betreiber:","Datum:"]
[]
[]
[null,"Nummer","Einsatzstoff","Biogasertrag\nin m³/t Frischmasse","Einsatzmenge\nin t FM/Jahr","Gasertrag\nin Nm³/Jahr"]
[null,{"$f":"Einsatzstoffe!A58","v":"54."},{"$f":"Einsatzstoffe!B58","v":"Mais (Ganzpflanze) *)"},{"$f":"Einsatzstoffe!E58","v":203.84615384615384},null,{"$f":"D7*E7","v":0}]
[null,{"$f":"Einsatzstoffe!A31","v":"27."},{"$f":"Einsatzstoffe!B31","v":"Gras einschließlich Ackergras"},{"$f":"Einsatzstoffe!E31","v":185.18518518518519},null,{"$f":"D8*E8","v":0}]
[null,{"$f":"Einsatzstoffe!A24","v":"20."},{"$f":"Einsatzstoffe!B24","v":"Getreide (Ganzpflanze) *)"},{"$f":"Einsatzstoffe!E24","v":198.07692307692309},null,0]
[null,{"$f":"Einsatzstoffe!A12","v":"8."},{"$f":"Einsatzstoffe!B12","v":"Corn-Cob-Mix (CCM)"},{"$f":"Einsatzstoffe!E12","v":456.6037735849057},null,0]
[null,{"$f":"Einsatzstoffe!A74","v":"70."},{"$f":"Einsatzstoffe!B74","v":"Rindergülle"},{"$f":"Einsatzstoffe!E74","v":30.909090909090907},null,0]
[null,{"$f":"Einsatzstoffe!A73","v":"69."},{"$f":"Einsatzstoffe!B73","v":"Rinderfestmist"},{"$f":"Einsatzstoffe!E73","v":96.36363636363636},null,0]
[null,{"$f":"Einsatzstoffe!A81","v":"77."},{"$f":"Einsatzstoffe!B81","v":"Schweinegülle"},{"$f":"Einsatzstoffe!E81","v":20},null,0]
[null,null,"Weitere Einsatzstoffe:"]
[null,1,null,{"$f":"IF(INDEX(Einsatzstoffe!E5:E96,Genehmigungsbedürftigkeit!B15)<>0,INDEX(Einsatzstoffe!E5:E96,Genehmigungsbedürftigkeit!B15),\"\")","v":""},null,{"$f":"IF(D15<>\"\",D15*E15,\"0\")","v":"0"}]
[null,1,null,{"$f":"IF(INDEX(Einsatzstoffe!E5:E96,Genehmigungsbedürftigkeit!B16)<>0,INDEX(Einsatzstoffe!E5:E96,Genehmigungsbedürftigkeit!B16),\"\")","v":""},null,{"$f":"IF(D16<>\"\",D16*E16,\"0\")","v":"0"}]
[null,1,null,{"$f":"IF(INDEX(Einsatzstoffe!E5:E96,Genehmigungsbedürftigkeit!B17)<>0,INDEX(Einsatzstoffe!E5:E96,Genehmigungsbedürftigkeit!B17),\"\")","v":""},null,{"$f":"IF(D17<>\"\",D17*E17,\"0\")","v":"0"}]
[null,1,null,{"$f":"IF(INDEX(Einsatzstoffe!E5:E96,Genehmigungsbedürftigkeit!B18)<>0,INDEX(Einsatzstoffe!E5:E96,Genehmigungsbedürftigkeit!B18),\"\")","v":""},null,{"$f":"IF(D18<>\"\",D18*E18,\"0\")","v":"0"}]
[null,1,null,{"$f":"IF(INDEX(Einsatzstoffe!E5:E96,Genehmigungsbedürftigkeit!B19)<>0,INDEX(Einsatzstoffe!E5:E96,Genehmigungsbedürftigkeit!B19),\"\")","v":""},null,{"$f":"IF(D19<>\"\",D19*E19,\"0\")","v":"0"}]
[null,null,"Summe",null,{"$f":"SUM(E7:E19)","v":0},{"$f":"SUM(F7:F19)","v":0}]

{"sheet":"Hinweise","index":8,"n_rows":2,"n_cols":2,"rows_kept":2,"cut":false,"hidden":false,"merged":[]}
[]
[null,"Hinweise"]

{"sheet":"Einsatzstoffe","index":9,"n_rows":101,"n_cols":5,"rows_kept":101,"cut":false,"hidden":false,"merged":[]}
[]
[null,"Einsatzstoffe gemäß Biomasseverordnung"]
[]
["Nummer","Einsatzstoff","Methanertrag\nin Nm³/t Frischmasse","Methangehalt\nin %","Biogasertrag \nin Nm³/t Frischmasse"]
["1."," --- Keine Auswahl ---"]
["2.","Altbrot",254,53,{"$f":"C6/D6*100","v":479.24528301886795}]
["3.","Backabfälle",344,53,{"$f":"C7/D7*100","v":649.05660377358492}]
["4.","Biertreber (frisch/abgepresst)",61,59,103.38983050847457]
["5.","Blühstreifen, Blühflächen, Schonstreifen, Ackerrandstreifen, \nWildblumenaufwuchs",72,50,144]
["6.","Buttermilch frisch (nicht oder nicht mehr zum Verzehr geeignet)",32,59,54.237288135593218]
["7.","Casein",392,69,568.1159420289855]
["8.","Corn-Cob-Mix (CCM)",242,53,456.6037735849057]
["9.","Durchwachsene Silphie",67,52,128.84615384615387]
["10.","Fettabscheiderinhalte",15,68,22.058823529411764]
["11.","Flotatfette",43,68,63.235294117647058]
["12.","Flotatschlamm",81,68,119.11764705882352]
["13.","Frittierfette",562,68,826.47058823529414]
["14.","Futterrübe",52,52,100]
["15.","Futterrübenblatt",38,54,70.370370370370367]
["16.","Geflügelmist, Geflügeltrockenkot",82,65,126.15384615384615]
["17.","Gemüse (aussortiert)",40,56,71.428571428571431]
["18.","Gemüseabputz",26,56,46.428571428571431]
["19.","Getreide (Ausputz)",254,56,453.57142857142856]
["20.","Getreide (Ganzpflanze) *)",103,52,198.07692307692309]
["21.","Getreideabfälle",272,54,503.7037037037037]
["22.","Getreidekorn",320,53,603.77358490566041]
["23.","Getreideschlempe aus der Alkoholproduktion",18,55,32.727272727272727]
["24.","Getreideschlempe mit Ausnahme der Alkoholproduktion",22,59,37.288135593220339]
["25.","Getreidestaub",172,53,324.52830188679246]
["26.","Glyzerin",421,50,842]
["27.","Gras einschließlich Ackergras",100,54,185.18518518518519]
["28.","Grünroggen (Ganzpflanze) *)",72,53,135.84905660377359]
["29.","Grünschnitt aus der privaten und öffentlichen \nGarten- und Parkpflege",43,50,86]
["30.","Heil- und Gewürzpflanzen (aussortiert)",58,55,105.45454545454544]
["31.","Hülsenfrüchte (Ganzpflanze) *)",63,55,114.54545454545455]
["32.","Kartoffelfruchtwasser aus der Stärkeproduktion",11,71,15.492957746478872]
["33.","Kartoffelkraut",30,55,54.54545454545454]
["34.","Kartoffeln (aussortiert)",92,52,176.92307692307691]
["35.","Kartoffeln (gemust, mittlerer Stärkegehalt; \nnicht oder nicht mehr zum Verzehr geeignet)",66,52,126.92307692307692]
["36.","Kartoffelprozesswasser aus der Stärkeproduktion",3,65,4.6153846153846159]
["37.","Kartoffelpülpe aus der Stärkeproduktion",61,50,122]
["38.","Kartoffelschalen",66,51,129.41176470588235]
["39.","Kartoffelschlempe aus der Alkoholproduktion",17,54,31.481481481481481]
["40.","Kartoffelschlempe mit Ausnahme der Alkoholproduktion",18,56,32.142857142857146]
["41.","Kleegras (als Zwischenfrucht von Ackerstandorten)",86,55,156.36363636363637]
["42.","Kleie",270,54,500]
["43.","Körnermais",324,53,611.32075471698113]
["44.","Labmolke eingedickt",44,53,83.018867924528308]
["45.","Labmolke frisch",18,53,33.962264150943398]
["46.","Landschaftspflegematerial einschließlich Landschaftspflegegras",43,50,86]
["47.","Leguminosen-Gemenge",79,56,141.07142857142858]
["48.","Lieschkolbenschrot",148,53,279.24528301886789]
["49.","Lupine",80,60,133.33333333333331]
["50.","Luzernegras (als Zwischenfrucht von Ackerstandorten)",79,54,146.2962962962963]
["51.","Mageninhalt (Schwein)",27,55,49.090909090909093]
["52.","Magermilch frisch (nicht oder nicht mehr zum Verzehr geeignet)",33,58,56.896551724137936]
["53.","Magermilch trocken",363,58,625.86206896551721]
["54.","Mais (Ganzpflanze) *)",106,52,203.84615384615384]
["55.","Melasse aus der Rübenzuckerherstellung",166,52,319.23076923076923]
["56.","Milch (nicht oder nicht mehr zum Verzehr geeignet)",70,63,111.11111111111111]
["57.","Milchzucker",378,50,756]
["58.","Milchzuckermelasse",91,56,162.5]
["59.","Milchzuckermelasse proteinarm",69,53,130.18867924528303]
["60.","Molke teilentzuckert trocken",298,56,532.14285714285711]
["61.","Molke nicht teilentzuckert und trocken",18,53,33.962264150943398]
["62.","Obsttrester und Traubentrester (frisch/unbehandelt)",49,52,94.230769230769226]
["63.","Panseninhalt",33,55,60]
["64.","Pferdemist",35,55,63.636363636363633]
["65.","Phacelia",80,50,160]
["66.","Quark (nicht oder nicht mehr zum Verzehr geeignet)",92,67,137.31343283582089]
["67.","Rapsextraktionsschrot",274,60,{"$f":"C71/D71*100","v":456.66666666666663}]
["68.","Rapskuchen",317,61,519.67213114754099]
["69.","Rinderfestmist",53,55,96.36363636363636]
["70.","Rindergülle",17,55,30.909090909090907]
["71.","Rübenkleinteile (aus der Zuckerverarbeitung)",50,52,96.15384615384616]
["72.","Sauermolke eingedickt",42,54,77.777777777777786]
["73.","Sauermolke frisch",20,54,37.037037037037038]
["74.","Schafmist, Ziegenmist",59,55,107.27272727272728]
["75.","Schnittblumen (aussortiert)",55,50,110.00000000000001]
["76.","Schweinefestmist",45,60,75]
["77.","Schweinegülle",12,60,20]
["78.","Sonnenblume (Ganzpflanze) *)",67,53,126.41509433962264]
["79.","Sonstige Einsatzstoffe (nicht NawaRo) **)",110,55,200]
["80.","Sonstige NaWaRos **)",50,55,90.909090909090907]
["81.","Sorghum (Ganzpflanze) *)",80,52,153.84615384615387]
["82.","Speisereste",57,60,95]
["83.","Straßenbegleitgras",43,50,86]
["84.","Stroh",161,52,309.61538461538464]
["85.","Sudangras",80,53,150.9433962264151]
["86.","Tierblut",83,70,118.57142857142857]
["87.","Weidelgras",79,54,146.2962962962963]
["88.","Winterrübsen",70,54,129.62962962962962]
["89.","Zuckerrüben",75,51,147.05882352941177]
["90.","Zuckerrübenblatt mit Anteilen Zuckerrübe",46,54,85.18518518518519]
["91.","Zuckerrübenpresskuchen aus der Zuckerproduktion",64,51,125.49019607843137]
["92.","Zuckerrübenschnitzel",64,51,125.49019607843137]
[]
[]
[]
[null,"*) Werte gelten für silierte und unsilierte Substrate"]
[null,"**) Durchschnittswerte"]